fUSD/lending_fUSD_20241109
["ID","MTS","AMOUNT","RATE_DAILY","PERIOD"]
[341713796,1731120643778,-150.0,0.0002994,2]
[341713797,1731120643787,-150.0,0.00029943,2]
[341713798,1731120643800,-1165.55856394,0.00029945,15]
[341713800,1731120643809,-150.0,0.00029948,2]
[341713802,1731120643818,-1500.0,0.00029948,2]
[341713804,1731120643827,-150.0,0.00029949,2]
[341713805,1731120643836,-150.0,0.00029952,2]
[341713806,1731120643845,-150.0,0.00029953,2]
[341713807,1731120643854,-150.0,0.00029954,2]
[341713808,1731120643863,-150.0,0.00029956,2]
[341713809,1731120643872,-1022.615515,0.0002996,10]
[341713810,1731120643882,-174.45439594,0.0002996,2]
[341713811,1731120643891,-1165.55856394,0.0002996,15]
[341713812,1731120643900,-150.0,0.00029961,2]
[341713813,1731120643909,-150.0,0.00029962,2]
[341713814,1731120643918,-500.0,0.00029963,7]
[341713815,1731120643928,-500.0,0.00029963,7]
[341713816,1731120643937,-150.0,0.00029967,2]
[341713817,1731120643945,-150.0,0.0002997,2]
[341713818,1731120643954,-500.0,0.00029973,5]
[341713819,1731120643963,-500.0,0.00029973,2]
[341713820,1731120643972,-500.0,0.00029973,5]
[341713821,1731120643981,-150.0,0.00029973,2]
[341713822,1731120643990,-150.0,0.00029974,2]
[341713823,1731120644000,-1165.55856394,0.00029976,15]
[341713824,1731120644009,-150.0,0.0002998,2]
[341713825,1731120644019,-1000.0,0.0002998,10]
[341713826,1731120644028,-150.0,0.00029988,2]
[341713827,1731120644037,-150.0,0.00029988,2]
[341713828,1731120644048,-150.0,0.00029988,2]
[341713829,1731120644058,-150.0,0.00029989,2]
[341713830,1731120644067,-234.15,0.0002999,3]
[341713831,1731120644076,-1165.55856394,0.00029991,15]
[341713832,1731120644085,-150.0,0.00029992,2]
[341713833,1731120644094,-150.0,0.00029997,2]
[341713834,1731120644103,-843.84477628,0.00029998,2]
[341713835,1731120644113,-247.39638846,0.00029998,5]
[341713836,1731120644122,-150.0,0.00029998,2]
[341713837,1731120644131,-1621.6,0.00029998,2]
[341713838,1731120644142,-150.0,0.00029998,2]
[341713839,1731120644152,-150.0,0.00029998,2]
[341713840,1731120644162,-502.82630299,0.00029999,2]
[341713841,1731120644172,-238.94851263,0.00029999,2]
[341713842,1731120644182,-500.0,0.00029999,2]
[341713843,1731120644195,-500.0,0.00029999,2]
[341713844,1731120644204,-500.0,0.00029999,2]
[341713845,1731120644214,-500.0,0.00029999,2]
[341713846,1731120644224,-435.48295231,0.00029999,2]
[341713847,1731120644234,-1009.51304998,0.00029999,2]
[341713848,1731120644243,-560.97749109,0.00029999,2]
[341713849,1731120644253,-5050.0,0.0003,22]
[341713850,1731120644262,-5100.0,0.0003,26]
[341713851,1731120644272,-5100.0,0.0003,27]
[341713852,1731120644281,-5100.0,0.0003,28]
[341713853,1731120644291,-5100.0,0.0003,29]
[341713854,1731120644302,-2000.0,0.0003,2]
[341713855,1731120644311,-1200.0,0.0003,30]
[341713856,1731120644320,-1800.0,0.0003,31]
[341713857,1731120644330,-151.0,0.0003,120]
[341713858,1731120644339,-151.0,0.0003,120]
[341713859,1731120644348,-2001.051,0.0003,2]
[341713860,1731120644358,-200.0,0.0003,120]
[341713861,1731120644368,-6324.20569307,0.0003,2]
[341713862,1731120644377,-1827.0,0.0003,7]
[341713863,1731120644387,-197.96882344,0.0003,2]
[341713864,1731120644396,-90138.38580637,0.0003,2]
[341713865,1731120644424,-10620.34102494,0.0003,2]
[341713871,1731120646240,-1340.29089161,0.0003,2]
[341713872,1731120646254,-3400.65,0.0003,2]
[341713873,1731120646265,-1205.20000001,0.0003,2]
[341713875,1731120658887,486.0,0.000219,2]
[341713876,1731120659501,461.0,0.000219,2]
[341713877,1731120660606,191.5255,0.0002252,2]
[341713879,1731120712490,13909.63,0.0002,2]
[341713887,1731121330886,156.01,0.00015342,2]
[341713888,1731121332048,637.67613019,0.00027,120]
[341713892,1731121478980,150.0,0.00023,2]
[341713894,1731121629139,-504.78,0.00026925,2]
[341713895,1731121629163,-158.0,0.00028,4]
[341713896,1731121629185,-234.838921,0.00028159,2]
[341713897,1731121629209,-300.37,0.00028301,2]
[341713898,1731121629232,-500.0,0.00028319,7]
[341713899,1731121629257,-195.18446788,0.00028728,2]
[341713901,1731121775648,1193.0,0.000219,2]
[341713902,1731121777592,163.9,0.00022465,2]
[341713919,1731121832187,-464.97965693,0.00028684,2]
[341713920,1731121832196,-464.97965692,0.00028717,2]
[341713921,1731121832205,-4.81553212,0.00028728,2]
[341713922,1731121832215,-800.0,0.00028732,120]
[341713923,1731121832225,-300.37,0.00028756,2]
[341713924,1731121832234,-7064.8,0.00028769,2]
[341713925,1731121832243,-250.0,0.00028784,2]
[341713926,1731121832252,-250.0,0.00028806,2]
[341713927,1731121832262,-7931.0,0.00028817,2]
[341713928,1731121832272,-262.93,0.00028824,2]
[341713929,1731121832281,-534.52,0.00028843,2]
[341713930,1731121832291,-1000.0,0.00028843,2]
[341713931,1731121832300,-475.55,0.00028843,2]
[341713932,1731121832310,-150.0,0.00028844,2]
[341713933,1731121832319,-271.45,0.00028844,2]
[341713934,1731121832329,-23900.0,0.00028856,2]
[341713935,1731121832339,-156.01,0.00028858,2]
[341713936,1731121832349,-2747.03,0.0002894,2]
[341713937,1731121832358,-170.13,0.00028995,30]
[341713938,1731121832367,-432.91,0.00029178,2]
[341713939,1731121832376,-504.78,0.00029189,2]
[341713940,1731121832386,-300.37,0.00029211,2]
[341713941,1731121832395,-500.0,0.00029415,7]
[341713942,1731121832405,-500.0,0.00029415,7]
[341713943,1731121832414,-500.0,0.00029415,7]
[341713944,1731121832423,-158.119,0.0002961,2]
[341713945,1731121832433,-300.37,0.00029666,2]
[341713946,1731121832441,-150.0,0.00029838,2]
[341713947,1731121832451,-150.0,0.00029846,2]
[341713948,1731121832460,-150.0,0.00029847,2]
[341713949,1731121832469,-150.0,0.00029849,2]
[341713950,1731121832478,-150.0,0.0002985,2]
[341713951,1731121832486,-150.0,0.00029853,2]
[341713952,1731121832496,-150.0,0.00029863,2]
[341713953,1731121832505,-150.0,0.00029864,2]
[341713954,1731121832515,-150.0,0.00029869,2]
[341713955,1731121832529,-150.0,0.00029869,2]
[341713956,1731121832539,-150.0,0.00029873,2]
[341713957,1731121832548,-150.0,0.00029875,2]
[341713958,1731121832558,-300.0,0.00029876,2]
[341713959,1731121832567,-150.0,0.00029896,2]
[341713960,1731121832577,-174.45439595,0.00029897,2]
[341713961,1731121832586,-174.45439594,0.00029898,2]
[341713962,1731121832595,-321.73217626,0.00029898,2]
[341713963,1731121832604,-174.45439594,0.00029898,2]
[341713965,1731121832614,-500.0,0.00029899,2]
[341713966,1731121832623,-263.3692,0.00029899,2]
[341713967,1731121832632,-1694.7752,0.00029899,2]
[341713968,1731121832641,-2482.54,0.00029899,2]
[341713970,1731121832651,-1308.84930355,0.00029899,15]
[341713971,1731121832660,-511.77256817,0.00029899,2]
[341713972,1731121832669,-1000.0,0.000299,2]
[341713973,1731121832679,-150.0,0.000299,2]
[341713974,1731121832688,-150.0,0.000299,2]
[341713975,1731121832697,-150.0,0.00029901,2]
[341713976,1731121832707,-150.0,0.00029904,2]
[341713977,1731121832717,-150.0,0.00029907,2]
[341713978,1731121832726,-150.0,0.00029907,2]
[341713979,1731121832735,-150.0,0.00029909,2]
[341713980,1731121832745,-1500.0,0.0002991,2]
[341713981,1731121832755,-150.0,0.00029913,2]
[341713982,1731121832764,-150.0,0.00029913,2]
[341713983,1731121832774,-150.0,0.00029914,2]
[341713984,1731121832784,-1308.84930354,0.00029914,15]
[341713985,1731121832793,-204.22136322,0.00029918,2]
[341713986,1731121832804,-166.93930733,0.00029918,2]
[341713987,1731121832817,-182.38239809,0.00029918,2]
[341713988,1731121832830,-511.77256816,0.00029919,2]
[341713989,1731121832845,-150.0,0.00029919,2]
[341713990,1731121832857,-150.0,0.0002992,2]
[341713991,1731121832868,-150.0,0.00029929,2]
[341713992,1731121832880,-1308.84930354,0.00029929,15]
[341713993,1731121832891,-153.36078666,0.00029932,2]
[341713994,1731121832903,-150.0,0.00029937,2]
[341713995,1731121832915,-150.0,0.00029938,2]
[341713996,1731121832926,-511.77256816,0.00029938,2]
[341713997,1731121832938,-1308.84930354,0.00029945,15]
[341713998,1731121832949,-150.0,0.00029954,2]
[341713999,1731121832961,-150.0,0.00029957,2]
[341714000,1731121832973,-511.77256816,0.00029958,2]
[341714001,1731121832985,-150.0,0.00029958,2]
[341714002,1731121832995,-1308.84930354,0.0002996,15]
[341714003,1731121833006,-150.0,0.0002996,2]
[341714004,1731121833017,-1022.615515,0.0002996,10]
[341714005,1731121833029,-150.0,0.00029963,2]
[341714006,1731121833040,-150.0,0.00029966,2]
[341714007,1731121833054,-150.0,0.00029969,2]
[341714008,1731121833067,-201.562,0.00029972,24]
[341714009,1731121833079,-500.0,0.00029973,5]
[341714010,1731121833091,-500.0,0.00029973,2]
[341714011,1731121833102,-150.0,0.00029973,2]
[341714012,1731121833114,-1308.84930354,0.00029975,15]
[341714013,1731121833125,-182.38239809,0.00029977,2]
[341714014,1731121833137,-511.77256816,0.00029977,2]
[341714015,1731121833149,-1000.0,0.0002998,10]
[341714016,1731121833161,-150.0,0.00029982,2]
[341714017,1731121833172,-5755.42173898,0.00029984,30]
[341714018,1731121833184,-478.65969546,0.00029984,30]
[341714019,1731121833197,-150.0,0.00029985,2]
[341714020,1731121833208,-234.15,0.00029988,3]
[341714021,1731121833220,-491.13322858,0.00029988,2]
[341714022,1731121833232,-150.0,0.0002999,2]
[341714023,1731121833243,-4251.4117464,0.0002999,2]
[341714024,1731121833256,-1308.84930354,0.0002999,15]
[341714025,1731121833266,-511.77256816,0.00029997,2]
[341714026,1731121833279,-247.39638846,0.00029997,5]
[341714027,1731121833291,-500.0,0.00029997,2]
[341714028,1731121833303,-500.0,0.00029997,2]
[341714029,1731121833315,-500.0,0.00029997,2]
[341714030,1731121833327,-500.0,0.00029997,2]
[341714031,1731121833337,-543.35859833,0.00029997,2]
[341714032,1731121833347,-500.0,0.00029997,2]
[341714033,1731121833358,-501.54961288,0.00029997,2]
[341714034,1731121833368,-500.0,0.00029997,2]
[341714035,1731121833381,-500.0,0.00029997,2]
[341714036,1731121833394,-500.0,0.00029997,2]
[341714037,1731121833406,-185.386115,0.00029997,2]
[341714038,1731121833416,-500.0,0.00029997,2]
[341714039,1731121833426,-500.0,0.00029997,2]
[341714040,1731121833436,-500.0,0.00029997,2]
[341714041,1731121833446,-500.0,0.00029997,2]
[341714042,1731121833457,-500.0,0.00029997,2]
[341714043,1731121833469,-171.38506422,0.00029997,2]
[341714044,1731121833482,-500.0,0.00029997,2]
[341714045,1731121833493,-500.0,0.00029997,2]
[341714046,1731121833505,-500.0,0.00029997,2]
[341714047,1731121833515,-509.3300739,0.00029997,2]
[341714048,1731121833527,-381561.7379649,0.00029998,4]
[341714049,1731121833537,-12476.6900953,0.00029998,4]
[341714050,1731121833549,-9097.45176491,0.00029998,2]
[341714051,1731121833564,-537.85935506,0.00029998,2]
[341714052,1731121833577,-2127.12108198,0.00029998,2]
[341714053,1731121833590,-14642.15529476,0.00029998,2]
[341714054,1731121833604,-14393.08250329,0.00029998,2]
[341714055,1731121833615,-40797.67,0.00029998,2]
[341714056,1731121833630,-40797.67,0.00029998,2]
[341714057,1731121833641,-40797.67,0.00029998,2]
[341714058,1731121833652,-40797.67,0.00029998,2]
[341714059,1731121833663,-40797.67,0.00029998,2]
[341714060,1731121833675,-40797.67,0.00029998,2]
[341714061,1731121833686,-20761.00707954,0.00029998,2]
[341714062,1731121833700,-1757.1255,0.00029998,2]
[341714063,1731121833747,-256.58313969,0.00029998,2]
[341714066,1731121838544,-14302.79939127,0.00029998,2]
[341714074,1731121840268,-205.24,0.00029988,10]
[341714075,1731121840278,-1635.17893064,0.00029998,2]
[341714076,1731121840290,-594.47999998,0.00029998,2]
[341714077,1731121840302,-280.36220002,0.00029998,2]
[341714078,1731121840314,-1210.13375886,0.00029998,2]
[341714079,1731121840323,-187.33124112,0.00029998,2]
[341714092,1731121843319,-150.18,0.00028371,2]
[341714093,1731121843329,-150.18,0.00028826,2]
[341714094,1731121843338,-150.18,0.00029282,2]
[341714095,1731121843348,-150.18,0.00029738,2]
[341714096,1731121843358,-4486.41599558,0.00029998,2]
[341714097,1731121843370,-36123.9227633,0.00029998,2]
[341714098,1731121843380,-40797.67,0.00029998,2]
[341714099,1731121843390,-40797.67,0.00029998,2]
[341714100,1731121843399,-40797.67,0.00029998,2]
[341714101,1731121843408,-3310.35747447,0.00029998,2]
[341714102,1731121846038,-4806.6221037,0.00029998,2]
[341714103,1731121846051,-324.7250105,0.00029998,2]
[341714104,1731121846064,-265.70156111,0.00029998,2]
[341714105,1731121846077,-344.7,0.00029998,2]
[341714106,1731121846089,-5423.60887858,0.00029998,2]
[341714107,1731121846263,-1026.31528004,0.00029998,2]
[341714110,1731121846500,-1583.12619503,0.00029998,2]
[341714241,1731121904554,150.0,0.00019504,2]
[341714242,1731121904658,176.07539558,0.00019717,2]
[341714244,1731122205487,163.07,0.00015342,2]
[341714248,1731122650552,446.7,0.00023,2]
[341714249,1731122679551,1074.0,0.000221,2]
[341714250,1731122680197,966.0,0.000221,2]
[341714251,1731122754264,-161.69,0.00023061,2]
[341714252,1731122754289,-131.58625862,0.00023173,2]
[341714253,1731122754884,1702.58675,0.0001892,2]
[341714254,1731122754910,4330.0,0.0001892,2]
[341714255,1731122754939,30533.03671379,0.0001892,2]
[341714257,1731122841105,-1007.48251156,0.00022,2]
[341714258,1731122841130,-26.46374138,0.00023173,2]
[341714259,1731122841155,-163.12258209,0.00024832,2]
[341714260,1731122841179,-589.2137019,0.00024832,2]
[341714261,1731122841204,-500.0,0.00024932,2]
[341714262,1731122841227,-500.0,0.00024932,2]
[341714263,1731122841251,-328.23697221,0.0002661,2]
[341714264,1731122841276,-674.04,0.00026956,2]
[341714265,1731122841299,-238.70835329,0.00027,2]
[341714266,1731122857709,2401.66627607,0.000201,2]
[341714277,1731122950082,-1235.59995324,0.00027,2]
[341714280,1731123013291,640.33,0.00026697,2]
[341714281,1731123016075,1938.93525,0.00022414,2]
[341714297,1731123032306,-171.64,0.00027191,2]
[341714298,1731123032316,-163.12258208,0.00027418,2]
[341714299,1731123032325,-14241.0,0.00027681,2]
[341714300,1731123032334,-1237.33,0.00028106,2]
[341714301,1731123032343,-152.0,0.00028373,3]
[341714302,1731123032356,-1237.33,0.00028558,2]
[341714303,1731123032364,-428.53,0.00028625,2]
[341714304,1731123032374,-1000.0,0.00028687,2]
[341714305,1731123032383,-160.0,0.00028693,120]
[341714306,1731123032392,-217.16,0.00028778,2]
[341714307,1731123032402,-161.62,0.00028842,30]
[341714308,1731123032411,-640.33,0.00028961,2]
[341714309,1731123032420,-1237.33,0.00029009,2]
[341714310,1731123032431,-966.36,0.000291,2]
[341714311,1731123032440,-966.36,0.000291,2]
[341714312,1731123032449,-966.36,0.000291,2]
[341714313,1731123032458,-168.20967764,0.000291,2]
[341714314,1731123032470,-798.15032236,0.000291,2]
[341714315,1731123032479,-2810.0,0.00029315,2]
[341714316,1731123032488,-468.02281683,0.000294,2]
[341714317,1731123032498,-500.0,0.00029415,7]
[341714318,1731123032507,-141.56132266,0.00029415,7]
[341714319,1731123032534,-358.43867734,0.00029415,7]
[341714320,1731123032543,-1237.33,0.00029461,2]
[341714321,1731123032552,-152.0,0.00029483,4]
[341714322,1731123032563,-317.339,0.00029573,2]
[341714323,1731123032572,-150.0,0.00029695,2]
[341714324,1731123032581,-2000.0,0.000297,2]
[341714325,1731123032590,-150.0,0.00029716,2]
[341714326,1731123032600,-150.0,0.00029723,2]
[341714327,1731123032609,-150.0,0.00029728,2]
[341714328,1731123032618,-150.0,0.00029751,2]
[341714329,1731123032627,-150.0,0.00029757,2]
[341714330,1731123032636,-150.0,0.00029761,2]
[341714331,1731123032645,-150.0,0.00029769,2]
[341714332,1731123032654,-150.0,0.00029778,2]
[341714333,1731123032663,-150.0,0.0002978,2]
[341714334,1731123032672,-150.0,0.00029787,2]
[341714335,1731123032681,-1536.33581206,0.00029793,2]
[341714336,1731123032690,-150.0,0.00029798,2]
[341714337,1731123032700,-502.2887,0.00029799,2]
[341714338,1731123032709,-556.9939,0.00029799,2]
[341714339,1731123032718,-1500.0,0.00029802,2]
[341714340,1731123032728,-1500.0,0.00029803,2]
[341714341,1731123032737,-170.59085607,0.00029803,2]
[341714342,1731123032748,-205.12733945,0.00029806,2]
[341714343,1731123032757,-1500.0,0.00029812,2]
[341714344,1731123032766,-150.0,0.00029819,2]
[341714345,1731123032776,-150.0,0.0002982,2]
[341714346,1731123032785,-150.0,0.00029821,2]
[341714347,1731123032794,-150.0,0.00029824,2]
[341714348,1731123032804,-150.0,0.00029826,2]
[341714349,1731123032813,-150.0,0.00029826,2]
[341714350,1731123032822,-150.0,0.00029838,2]
[341714351,1731123032832,-150.0,0.00029843,2]
[341714352,1731123032841,-150.0,0.00029843,2]
[341714353,1731123032851,-150.0,0.00029844,2]
[341714354,1731123032860,-170.59085605,0.0002985,2]
[341714355,1731123032870,-150.0,0.00029852,2]
[341714356,1731123032880,-150.0,0.00029852,2]
[341714357,1731123032889,-150.0,0.00029855,2]
[341714358,1731123032900,-637.06076,0.00029859,15]
[341714359,1731123032909,-150.0,0.00029865,2]
[341714360,1731123032919,-150.0,0.00029869,2]
[341714361,1731123032928,-166.22,0.00029872,2]
[341714362,1731123032938,-2741.43961481,0.00029878,2]
[341714363,1731123032947,-165.81780879,0.00029881,2]
[341714364,1731123032957,-170.59085605,0.00029896,2]
[341714365,1731123032966,-1716.5263,0.00029897,2]
[341714366,1731123032976,-806.5075,0.00029897,2]
[341714367,1731123032986,-261.90735426,0.00029897,2]
[341714368,1731123032996,-321.73217625,0.00029898,2]
[341714369,1731123033005,-2534.9583,0.00029898,2]
[341714370,1731123033015,-4433.03392067,0.00029898,2]
[341714371,1731123033046,-404.92261432,0.00029898,2]
[341714372,1731123033057,-338.37401454,0.00029898,2]
[341714376,1731123038385,-300.0,0.00029898,2]
[341714377,1731123038396,-1989.47898931,0.00029898,2]
[341714378,1731123038537,-6884.45455296,0.00029898,2]
[341714379,1731123038684,-6974.7901082,0.00029898,2]
[341714380,1731123038694,-301.8211,0.00029898,2]
[341714381,1731123038704,-1004.1851,0.00029898,2]
[341714382,1731123038714,-2067.0907,0.00029898,2]
[341714383,1731123038723,-820.0909,0.00029898,2]
[341714384,1731123038733,-4676.861,0.00029898,2]
[341714385,1731123038743,-795.0213,0.00029898,2]
[341714386,1731123038753,-250.5834,0.00029898,2]
[341714387,1731123038763,-251.19824801,0.00029899,2]
[341714388,1731123038773,-500.0,0.00029899,2]
[341714389,1731123038782,-500.0,0.00029899,2]
[341714390,1731123038792,-197.12859075,0.00029899,2]
[341714391,1731123038801,-500.0,0.00029899,2]
[341714392,1731123038811,-500.0,0.00029899,2]
[341714393,1731123038820,-417.13850642,0.00029899,2]
[341714394,1731123038830,-500.0,0.00029899,2]
[341714395,1731123038840,-454.18580972,0.00029899,2]
[341714396,1731123038850,-57038.95416743,0.00029899,2]
[341714397,1731123038862,-12306.53073257,0.00029899,2]
[341714398,1731123038872,-493.60965331,0.00029899,2]
[341714399,1731123038881,-150.0,0.000299,2]
[341714401,1731123038891,-1586.38478843,0.000299,10]
[341714402,1731123038900,-20000.0,0.000299,2]
[341714403,1731123038910,-20000.0,0.000299,2]
[341714404,1731123038919,-20000.0,0.000299,2]
[341714405,1731123038929,-20000.0,0.000299,2]
[341714406,1731123038939,-4553.599999,0.000299,2]
[341714407,1731123038949,-103191.72321941,0.000299,2]
[341714408,1731123038958,-150.0,0.00029903,2]
[341714409,1731123038968,-150.0,0.0002991,2]
[341714410,1731123038977,-150.0,0.00029911,2]
[341714411,1731123038987,-1237.33,0.00029912,2]
[341714412,1731123038997,-150.0,0.0002992,2]
[341714413,1731123039008,-150.0,0.00029931,2]
[341714414,1731123039019,-150.0,0.00029942,2]
[341714415,1731123039029,-170.59085605,0.00029943,2]
[341714416,1731123039038,-150.0,0.00029961,2]
[341714417,1731123039048,-150.0,0.00029962,2]
[341714418,1731123039058,-500.0,0.00029973,5]
[341714419,1731123039067,-506.25159544,0.00029973,5]
[341714420,1731123039076,-160.18645428,0.00029973,5]
[341714421,1731123039086,-500.0,0.00029973,5]
[341714422,1731123039095,-500.0,0.00029973,5]
[341714423,1731123039105,-500.0,0.00029973,2]
[341714424,1731123039115,-161.249,0.0002998,24]
[341714425,1731123039124,-327.42215239,0.00029988,2]
[341714426,1731123039134,-170.59085605,0.00029989,2]
[341714427,1731123039147,-243.110911,0.00029997,2]
[341714428,1731123039156,-152.527254,0.00029997,7]
[341714429,1731123039167,-151.0,0.00029997,7]
[341714430,1731123039177,-151.0,0.00029997,7]
[341714431,1731123039186,-172.830734,0.00029997,7]
[341714432,1731123039196,-163.233151,0.00029997,7]
[341714433,1731123039206,-151.0,0.00029997,7]
[341714434,1731123039218,-151.0,0.00029997,7]
[341714435,1731123039227,-151.0,0.00029997,7]
[341714436,1731123039237,-176.790725,0.00029997,7]
[341714437,1731123039248,-151.0,0.00029997,7]
[341714438,1731123039260,-177.383641,0.00029997,7]
[341714439,1731123039270,-500.0,0.00029997,2]
[341714440,1731123039279,-280.35101883,0.00029997,2]
[341714441,1731123039290,-500.0,0.00029997,2]
[341714442,1731123039301,-500.0,0.00029997,2]
[341714443,1731123039310,-155.685959,0.00029998,7]
[341714444,1731123039320,-151.0,0.00029998,7]
[341714445,1731123039329,-156.449202,0.00029998,7]
[341714446,1731123039338,-151.0,0.00029998,7]
[341714447,1731123039348,-151.0,0.00029998,7]
[341714448,1731123039360,-169.01191,0.00029998,7]
[341714449,1731123039369,-156.51558,0.00029998,7]
[341714450,1731123039379,-151.0,0.00029998,7]
[341714451,1731123039388,-151.0,0.00029998,7]
[341714452,1731123039398,-186.38878,0.00029998,7]
[341714453,1731123039408,-1772.38099,0.00029998,7]
[341714454,1731123039417,-1772.38099,0.00029998,7]
[341714455,1731123039426,-1772.38099,0.00029998,7]
[341714456,1731123039439,-26654.44110678,0.00029998,2]
[341714457,1731123040235,-1119.40937037,0.00029998,2]
[341714460,1731123040247,-671.11125443,0.00029998,2]
[341714462,1731123040376,-1555.03826842,0.00029998,2]
[341714463,1731123040385,-2409.85173158,0.00029998,2]
[341714464,1731123040405,-395.92311807,0.00029998,2]
[341714465,1731123040416,-1367.08,0.00029998,2]
[341714467,1731123043666,-3728.46440547,0.00029998,2]
[341714486,1731123043840,-13834.2,0.00029998,2]
[341714489,1731123043854,-563.8784653,0.00029998,2]
[341714491,1731123043867,-509.97006902,0.00029998,2]
[341714496,1731123044009,-7190.63221056,0.00029998,2]
[341714497,1731123044023,-30000.0,0.00029998,2]
[341714498,1731123044034,-30000.0,0.00029998,2]
[341714499,1731123044044,-30000.0,0.00029998,2]
[341714500,1731123044055,-30000.0,0.00029998,2]
[341714501,1731123044065,-30000.0,0.00029998,2]
[341714502,1731123044076,-4636.65802721,0.00029998,2]
[341714503,1731123044171,-25363.34197279,0.00029998,2]
[341714504,1731123044188,-30000.0,0.00029998,2]
[341714505,1731123044199,-30000.0,0.00029998,2]
[341714506,1731123044210,-30000.0,0.00029998,2]
[341714507,1731123044220,-30000.0,0.00029998,2]
[341714508,1731123044231,-30000.0,0.00029998,2]
[341714509,1731123044242,-30000.0,0.00029998,2]
[341714510,1731123044252,-30000.0,0.00029998,2]
[341714511,1731123044264,-7747.61434494,0.00029998,2]
[341714520,1731123046331,-641.61544197,0.00029998,2]
[341714521,1731123046345,-2010.87788766,0.00029998,2]
[341714522,1731123046502,-1348.43257351,0.00029998,2]
[341714523,1731123046519,-13988.67336084,0.00029998,2]
[341714524,1731123046533,-4262.78639108,0.00029998,2]
[341714525,1731123046544,-30000.0,0.00029998,2]
[341714526,1731123046555,-30000.0,0.00029998,2]
[341714527,1731123046566,-8122.81458799,0.00029998,2]
[341714528,1731123046580,-292.29160126,0.00029998,2]
[341714529,1731123046594,-277.77979186,0.00029998,2]
[341714530,1731123046608,-1186.59452409,0.00029998,2]
[341714531,1731123046627,-682.82,0.00029998,2]
[341714532,1731123046640,-1493.56293653,0.00029998,2]
[341714533,1731123046652,-13737.02976123,0.00029998,2]
[341714534,1731123046666,-4207.10679704,0.00029998,2]
[341714535,1731123046677,-30000.0,0.00029998,2]
[341714536,1731123046688,-30000.0,0.00029998,2]
[341714537,1731123046699,-4314.37574816,0.00029998,2]
[341714538,1731123046710,-151.0,0.00029998,7]
[341714539,1731123046721,-151.0,0.00029998,7]
[341714540,1731123046731,-257.673629,0.00029998,7]
[341714543,1731123046742,-257.673629,0.00029998,7]
[341714547,1731123046753,-257.673629,0.00029998,7]
[341714549,1731123046765,-257.673629,0.00029998,7]
[341714551,1731123046776,-151.0,0.00029998,7]
[341714553,1731123046787,-151.0,0.00029998,7]
[341714555,1731123046798,-151.0,0.00029998,7]
[341714557,1731123046809,-151.0,0.00029998,7]
[341714559,1731123046819,-151.0,0.00029998,7]
[341714561,1731123046829,-155.334534,0.00029998,7]
[341714563,1731123046840,-151.0,0.00029998,7]
[341714565,1731123046850,-151.0,0.00029998,7]
[341714568,1731123046861,-151.0,0.00029998,7]
[341714570,1731123046873,-151.0,0.00029998,7]
[341714572,1731123046883,-374.195436,0.00029998,7]
[341714574,1731123046894,-374.195436,0.00029998,7]
[341714576,1731123046904,-151.0,0.00029998,7]
[341714578,1731123046915,-151.0,0.00029998,7]
[341714580,1731123046925,-211.098146,0.00029998,7]
[341714582,1731123046936,-374.195436,0.00029998,7]
[341714585,1731123046946,-374.195436,0.00029998,7]
[341714587,1731123046956,-155.455871,0.00029998,7]